fUSD/lending_fUSD_20240405
["ID","MTS","AMOUNT","RATE_DAILY","PERIOD"]
[321659731,1712358639459,-249.04887144,0.00024999,2]
[321659732,1712358639471,-1535.48,0.00024999,2]
[321659733,1712358639480,-1535.48,0.00024999,2]
[321659734,1712358639490,-1535.48,0.00024999,2]
[321659735,1712358639500,-1535.48,0.00024999,2]
[321659736,1712358639509,-1535.48,0.00024999,2]
[321659737,1712358639518,-1535.48,0.00024999,2]
[321659738,1712358639528,-1535.48,0.00024999,2]
[321659739,1712358639537,-1535.48,0.00024999,2]
[321659740,1712358639546,-1535.48,0.00024999,2]
[321659741,1712358639556,-1535.48,0.00024999,2]
[321659742,1712358639566,-1535.48,0.00024999,2]
[321659743,1712358639575,-1535.51375786,0.00024999,2]
[321659744,1712358639585,-500.0,0.00024999,2]
[321659745,1712358639594,-180594.10920959,0.00025,2]
[321659746,1712358639606,-1707.15206711,0.00025,2]
[321659753,1712358639823,-6.30109636,0.00024979,2]
[321659754,1712358639835,-493.69890364,0.00024979,2]
[321659755,1712358639844,-589.17309632,0.00025,2]
[321659756,1712358639856,-2360.83574675,0.00025,2]
[321659772,1712358642814,-7153.08888871,0.000249,2]
[321659773,1712358642823,-500.0,0.00024979,2]
[321659774,1712358642833,-500.0,0.00024979,2]
[321659775,1712358642842,-40.81917395,0.00024979,2]
[321659776,1712358642853,-326.59999407,0.00024979,2]
[321659777,1712358642869,-132.58083198,0.00024979,2]
[321659779,1712358642879,-500.0,0.00024979,2]
[321659781,1712358642888,-349.72916817,0.00024979,2]
[321659792,1712358642979,-150.27083183,0.00024979,2]
[321659793,1712358642988,-500.0,0.00024979,2]
[321659794,1712358642999,-500.0,0.00024979,2]
[321659795,1712358643009,-500.0,0.00024997,2]
[321659796,1712358643018,-500.0,0.00024997,2]
[321659797,1712358643027,-500.0,0.00024999,2]
[321659798,1712358643036,-500.0,0.00024999,2]
[321659799,1712358643045,-500.0,0.00024999,2]
[321659800,1712358643054,-592.18413566,0.00024999,2]
[321659801,1712358643064,-500.0,0.00024999,2]
[321659802,1712358643073,-500.0,0.00024999,2]
[321659803,1712358643082,-249.99569397,0.00024999,2]
[321659804,1712358643091,-500.0,0.00024999,2]
[321659805,1712358643100,-2285.27802696,0.00024999,2]
[321659806,1712358643110,-446.98,0.00024999,2]
[321659807,1712358643119,-1031081.90205324,0.00025,2]
[321659808,1712358643882,183.09817913,0.0002248,2]
[321659811,1712358646755,487.55676842,0.00019982,2]
[321659812,1712358674728,19224.9413017,0.00019982,2]
[321659813,1712358683036,1467.62363901,0.00019982,2]
[321659814,1712358687422,20115.28201229,0.00019982,2]
[321659815,1712358699039,501.16069095,0.00019982,2]
[321659816,1712358705448,6884.07427322,0.00019982,2]
[321659817,1712358888160,150.0,0.00019206,2]
[321659821,1712359461012,1450.0,0.00021,3]
[321659822,1712359462254,1500.0,0.00023,3]
[321659823,1712359724051,382.51,0.00021883,2]
[321659861,1712359832217,-661.78401527,0.0002379,2]
[321659862,1712359832227,-108.68855336,0.00023791,2]
[321659863,1712359832272,-2250.0,0.00023791,2]
[321659864,1712359832329,-486.27317759,0.00023791,2]
[321659865,1712359832338,-782.92013336,0.00023791,2]
[321659866,1712359832348,-304.38590371,0.00023791,2]
[321659867,1712359832357,-615.31,0.00023801,2]
[321659868,1712359832369,-343.22708534,0.00023808,2]
[321659885,1712359837963,-3211.47110275,0.00023808,2]
[321659886,1712359837975,-1002.7016999,0.00023808,2]
[321659887,1712359838073,-6779.8,0.00023808,2]
[321659888,1712359838130,-661.8,0.00023808,2]
[321659889,1712359838186,-11891.00011201,0.00023808,2]
[321659890,1712359838196,-380.36,0.00023817,2]
[321659891,1712359838205,-250.0,0.00023849,2]
[321659892,1712359838214,-247.01,0.00023881,2]
[321659893,1712359838224,-619.64,0.00023894,2]
[321659894,1712359838233,-150.0,0.00024,2]
[321659895,1712359838243,-382.51,0.00024147,2]
[321659896,1712359838252,-150.0,0.000245,2]
[321659897,1712359838261,-167.17,0.00024595,2]
[321659898,1712359838271,-1000.0,0.000246,2]
[321659899,1712359838280,-1860.0,0.00024658,2]
[321659900,1712359838289,-2165.0,0.00024658,2]
[321659901,1712359838299,-162.01,0.000247,2]
[321659902,1712359838309,-150.0,0.000247,2]
[321659903,1712359838319,-150.0,0.000247,2]
[321659904,1712359838329,-720.42,0.000247,2]
[321659905,1712359838338,-171.42,0.000247,2]
[321659906,1712359838347,-150.0,0.000247,2]
[321659908,1712359838357,-1000.0,0.000247,2]
[321659910,1712359838366,-150.99,0.00024757,2]
[321659911,1712359838375,-499.99,0.00024757,2]
[321659912,1712359838384,-180.1330864,0.00024788,2]
[321659913,1712359838396,-2222.45717539,0.000248,2]
[321659914,1712359838406,-800.0,0.000248,2]
[321659915,1712359838417,-500.0,0.000248,2]
[321659916,1712359838427,-1810.56,0.000248,2]
[321659917,1712359838435,-317.05508642,0.000248,2]
[321659918,1712359838445,-180.1330864,0.000248,2]
[321659919,1712359838455,-180.1330864,0.00024813,2]
[321659921,1712359838464,-180.1330864,0.00024825,2]
[321659922,1712359838474,-180.1330864,0.00024838,2]
[321659923,1712359838485,-180.1330864,0.0002485,2]
[321659924,1712359838494,-180.1330864,0.00024863,2]
[321659925,1712359838505,-802.0,0.00024863,2]
[321659926,1712359838515,-434.0,0.00024863,2]
[321659927,1712359838524,-279.0,0.00024863,2]
[321659928,1712359838534,-315.204,0.00024863,2]
[321659929,1712359838544,-1942.0,0.00024863,2]
[321659930,1712359838553,-1462.0,0.00024863,2]
[321659931,1712359838562,-531.066,0.00024863,2]
[321659932,1712359838571,-3033.0,0.00024863,2]
[321659933,1712359838581,-245.619,0.00024863,2]
[321659934,1712359838591,-150.0,0.00024863,2]
[321659935,1712359838602,-1627.0,0.00024863,2]
[321659936,1712359838612,-2432.0,0.00024863,2]
[321659937,1712359838623,-207.0,0.00024863,2]
[321659938,1712359838633,-214.0,0.00024863,2]
[321659939,1712359838643,-965.0,0.00024863,2]
[321659940,1712359838653,-459.0,0.00024863,2]
[321659941,1712359838662,-2429.0,0.00024863,2]
[321659942,1712359838672,-5701.0,0.00024863,2]
[321659943,1712359838681,-2450.0,0.00024863,2]
[321659944,1712359838691,-4788.0,0.00024863,2]
[321659945,1712359838700,-604.996,0.00024863,2]
[321659946,1712359838709,-557.012,0.00024863,2]
[321659947,1712359838719,-180.1330864,0.00024875,2]
[321659948,1712359838729,-500.0,0.00024879,2]
[321659949,1712359838739,-2373.12,0.00024879,2]
[321659950,1712359838752,-500.0,0.00024879,2]
[321659951,1712359838763,-767.74,0.00024879,2]
[321659952,1712359838772,-500.0,0.00024879,2]
[321659953,1712359838780,-500.0,0.00024879,2]
[321659954,1712359838789,-500.0,0.0002488,2]
[321659955,1712359838798,-176358.9314856,0.0002488,2]
[321659982,1712359840119,-185.252,0.00024863,2]
[321659984,1712359840130,-1469.098,0.0002488,2]
[321659989,1712359840173,-667.3819803,0.0002488,2]
[321659991,1712359840185,-499.371414,0.0002488,2]
[321659996,1712359840286,-1319.0,0.0002488,2]
[321659997,1712359840342,-25120.98837892,0.0002488,2]
[321660000,1712359843128,-39565.22874118,0.0002488,2]
[321660001,1712359843137,-180.1330864,0.00024888,2]
[321660002,1712359843146,-24791.3104,0.000249,2]
[321660003,1712359843155,-7500.0,0.000249,2]
[321660004,1712359843164,-1000.0,0.000249,2]
[321660005,1712359843174,-658.35113517,0.000249,2]
[321660006,1712359843183,-152.91375919,0.000249,2]
[321660007,1712359843192,-169.59288491,0.000249,2]
[321660008,1712359843201,-5455.76457556,0.000249,2]
[321660009,1712359843211,-5455.76457556,0.000249,2]
[321660010,1712359843220,-5455.76457556,0.000249,2]
[321660011,1712359843230,-5455.76457556,0.000249,2]
[321660012,1712359843239,-5455.76457556,0.000249,2]
[321660013,1712359843248,-5455.76457556,0.000249,2]
[321660014,1712359843257,-5455.76457556,0.000249,2]
[321660015,1712359843267,-5455.76457556,0.000249,2]
[321660016,1712359843276,-5455.76457556,0.000249,2]
[321660017,1712359843285,-180.1330864,0.000249,2]
[321660018,1712359843294,-167.06213893,0.000249,2]
[321660019,1712359843303,-322.18007011,0.000249,2]
[321660020,1712359843312,-2084.44084228,0.000249,2]
[321660021,1712359843321,-500.0,0.00024905,2]
[321660022,1712359843331,-453.31292874,0.00024905,2]
[321660023,1712359843340,-333.040608,0.00024906,2]
[321660024,1712359843349,-333.040608,0.00024906,2]
[321660025,1712359843358,-333.040608,0.00024906,2]
[321660026,1712359843367,-333.040608,0.00024906,2]
[321660028,1712359843567,-333.040608,0.00024906,2]
[321660029,1712359843576,-333.040608,0.00024906,2]
[321660030,1712359843586,-333.040608,0.00024906,2]
[321660031,1712359843596,-333.040608,0.00024906,2]
[321660032,1712359843605,-333.040608,0.00024906,2]
[321660033,1712359843614,-307.040608,0.00024906,2]
[321660034,1712359843625,-150.0,0.0002494,2]
[321660035,1712359843634,-593.48897874,0.00024979,2]
[321660036,1712359843643,-1248.27620475,0.0002498,2]
[321660037,1712359843653,-155.32528686,0.00024998,3]
[321660038,1712359843662,-622.82099624,0.00024998,2]
[321660039,1712359843671,-2350.06073836,0.00024998,2]
[321660040,1712359843681,-155.46951148,0.00024998,2]
[321660041,1712359843689,-500.0,0.00024998,2]
[321660042,1712359843698,-213.58271905,0.00024999,2]
[321660043,1712359843707,-2658.3846436,0.00024999,2]
[321660044,1712359843717,-150.01,0.00024999,2]
[321660045,1712359843726,-500.0,0.00024999,2]
[321660046,1712359843735,-500.0,0.00024999,2]
[321660047,1712359843744,-500.0,0.00024999,2]
[321660048,1712359843755,-500.0,0.00024999,2]
[321660049,1712359843764,-500.0,0.00024999,2]
[321660050,1712359843773,-500.0,0.00024999,2]
[321660051,1712359843782,-500.0,0.00024999,2]
[321660052,1712359843791,-500.0,0.00024999,2]
[321660053,1712359843801,-500.0,0.00024999,2]
[321660054,1712359843811,-500.0,0.00024999,2]
[321660055,1712359843821,-500.0,0.00024999,2]
[321660056,1712359843834,-500.0,0.00024999,2]
[321660057,1712359843843,-500.0,0.00024999,2]
[321660058,1712359843853,-500.0,0.00024999,2]
[321660059,1712359843862,-320.89,0.00024999,2]
[321660060,1712359843873,-2373.12,0.00024999,2]
[321660061,1712359843882,-2373.12,0.00024999,2]
[321660062,1712359843893,-2373.12,0.00024999,2]
[321660063,1712359843901,-2373.12,0.00024999,2]
[321660064,1712359843911,-2373.12,0.00024999,2]
[321660065,1712359843920,-2373.12,0.00024999,2]
[321660066,1712359843929,-2373.12,0.00024999,2]
[321660067,1712359843939,-2373.12,0.00024999,2]
[321660068,1712359843948,-2373.12,0.00024999,2]
[321660069,1712359843959,-2373.12,0.00024999,2]
[321660070,1712359843969,-2373.12,0.00024999,2]
[321660071,1712359843978,-2373.12,0.00024999,2]
[321660072,1712359843987,-2373.12,0.00024999,2]
[321660073,1712359843995,-2373.12,0.00024999,2]
[321660074,1712359844005,-2373.12,0.00024999,2]
[321660075,1712359844014,-2373.12,0.00024999,2]
[321660076,1712359844023,-2373.12,0.00024999,2]
[321660077,1712359844032,-2373.12,0.00024999,2]
[321660078,1712359844041,-2373.12,0.00024999,2]
[321660079,1712359844051,-2373.12,0.00024999,2]
[321660080,1712359844060,-2373.12,0.00024999,2]
[321660081,1712359844071,-2373.12,0.00024999,2]
[321660082,1712359844080,-2373.30944631,0.00024999,2]
[321660083,1712359844089,-500.0,0.00024999,2]
[321660084,1712359844098,-500.0,0.00024999,2]
[321660085,1712359844107,-500.0,0.00024999,2]
[321660086,1712359844116,-500.0,0.00024999,2]
[321660087,1712359844126,-767.74,0.00024999,2]
[321660088,1712359844135,-767.74,0.00024999,2]
[321660089,1712359844145,-767.74,0.00024999,2]
[321660090,1712359844154,-767.74,0.00024999,2]
[321660091,1712359844163,-767.74,0.00024999,2]
[321660092,1712359844172,-767.74,0.00024999,2]
[321660093,1712359844182,-767.74,0.00024999,2]
[321660094,1712359844191,-767.74,0.00024999,2]
[321660095,1712359844201,-767.74,0.00024999,2]
[321660096,1712359844210,-767.74,0.00024999,2]
[321660097,1712359844219,-767.74,0.00024999,2]
[321660098,1712359844228,-767.74,0.00024999,2]
[321660099,1712359844237,-767.74,0.00024999,2]
[321660100,1712359844246,-767.74,0.00024999,2]
[321660101,1712359844255,-767.74,0.00024999,2]
[321660102,1712359844264,-767.74,0.00024999,2]
[321660103,1712359844274,-767.74,0.00024999,2]
[321660104,1712359844310,-767.74,0.00024999,2]
[321660105,1712359844338,-767.74,0.00024999,2]
[321660106,1712359844347,-767.74,0.00024999,2]
[321660107,1712359844357,-767.74,0.00024999,2]
[321660108,1712359844367,-767.74,0.00024999,2]
[321660109,1712359844377,-767.77375786,0.00024999,2]
[321660110,1712359844388,-222.71301868,0.00025,2]
[321660111,1712359844397,-175853.96661546,0.00025,3]
[321660112,1712359844406,-497363.47865349,0.00025,2]
[321660113,1712359844421,-494.16077633,0.00025,2]
[321660114,1712359844433,-486.68557047,0.00025,2]
[321660115,1712359844450,-3428.93,0.00025,2]
[321660116,1712359844466,-4999.7294999,0.00025,2]
[321660128,1712360204932,367.8,0.00021751,2]
[321660132,1712360696669,2534.19747766,0.00016313,2]
[321660133,1712360697778,243.09587795,0.00021751,2]
[321660134,1712360700920,287.44117018,0.00021751,2]
[321660135,1712360700956,155.0,0.00022498,2]
[321660136,1712360703096,300.0,0.00021751,2]
[321660137,1712360706662,939.83288273,0.00021751,2]
[321660138,1712360714596,333.4796873,0.00016313,2]
[321660139,1712360766651,349.41,0.00021645,2]
[321660161,1712361032252,-404.69128552,0.00023472,2]
[321660162,1712361032359,-378.22884784,0.00023472,2]
[321660163,1712361032368,-324.81075707,0.00023473,2]
[321660164,1712361032378,-1000.0,0.00023474,2]
[321660165,1712361032387,-219.1,0.00023478,2]
[321660166,1712361032397,-844.0,0.00023509,2]
[321660167,1712361032406,-2253.81956011,0.00023513,2]
[321660168,1712361032416,-650.6319,0.00023514,2]
[321660169,1712361032426,-304.29,0.00023621,2]
[321660170,1712361032435,-250.0,0.00023621,2]
[321660171,1712361032445,-500.0,0.00023654,2]
[321660172,1712361032455,-616.62,0.00023657,2]
[321660173,1712361032464,-3152.49,0.00023657,2]
[321660174,1712361032474,-499.99,0.00023657,2]
[321660175,1712361032484,-150.0,0.00023664,2]
[321660176,1712361032493,-22885.48756365,0.00023665,2]
[321660177,1712361032513,-1004.51243635,0.00023665,2]
[321660178,1712361032523,-55.83103307,0.00023665,2]
[321660179,1712361032536,-95.15896693,0.00023665,2]
[321660180,1712361032546,-152.01,0.00023798,2]
[321660181,1712361032557,-164.35,0.00023801,2]
[321660182,1712361032568,-164.35,0.00023841,2]
[321660183,1712361032577,-164.35,0.00023881,2]
[321660184,1712361032586,-152.01,0.00023881,2]
[321660185,1712361032596,-349.41,0.00023909,2]
[321660186,1712361032607,-164.35,0.0002392,2]
[321660187,1712361032617,-3202.48,0.0002392,2]
[321660188,1712361032625,-152.01,0.00023963,2]
[321660189,1712361032637,-695.71,0.00023984,2]
[321660190,1712361032649,-224.37030284,0.00024,2]
[321660191,1712361032658,-152.01,0.00024046,2]
[321660192,1712361032669,-152.01,0.00024129,2]
[321660193,1712361032679,-152.01,0.00024211,2]
[321660194,1712361032690,-152.01,0.00024294,2]
[321660195,1712361032701,-152.01,0.00024377,2]
[321660196,1712361032710,-152.01,0.0002446,2]
[321660197,1712361032720,-152.01,0.00024542,2]
[321660198,1712361032733,-152.01,0.00024625,2]
[321660199,1712361032743,-981.0,0.000247,2]
[321660200,1712361032753,-1000.0,0.000247,2]
[321660201,1712361032763,-152.01,0.00024708,2]
[321660202,1712361032775,-521.20214404,0.00024708,2]
[321660203,1712361032785,-1048.6244444,0.00024722,2]
[321660204,1712361032796,-150.0,0.00024729,2]
[321660205,1712361032805,-521.20214398,0.00024729,2]
[321660206,1712361032816,-1048.62444435,0.00024742,2]
[321660207,1712361032827,-500.0,0.00024743,2]
[321660208,1712361033070,-2500.0,0.00024743,2]
[321660209,1712361033080,-10395.0,0.0002475,2]
[321660210,1712361033089,-1811.34781,0.0002475,2]
[321660211,1712361033099,-521.20214398,0.00024751,2]
[321660212,1712361033108,-1048.62444435,0.00024762,2]
[321660213,1712361033121,-150.0,0.00024763,2]
[321660214,1712361033130,-521.20214398,0.00024772,2]
[321660215,1712361033139,-150.0,0.00024774,2]
[321660216,1712361033148,-317.05508646,0.0002478,2]
[321660217,1712361033158,-551.6188371,0.0002478,2]
[321660218,1712361033167,-1048.62444435,0.00024781,2]
[321660219,1712361033176,-150.0,0.00024785,2]
[321660220,1712361033186,-152.01,0.0002479,2]
[321660221,1712361033197,-150.0,0.00024793,2]
[321660222,1712361033207,-521.20214398,0.00024793,2]
[321660223,1712361033216,-209.3387,0.00024799,2]
[321660224,1712361033225,-433.4303,0.00024799,2]
[321660225,1712361033235,-2222.45717539,0.000248,2]
[321660226,1712361033244,-199.984527,0.000248,2]
[321660227,1712361033254,-500.0,0.000248,2]
[321660228,1712361033263,-1172.153,0.000248,2]
[321660229,1712361033272,-7106.2948,0.000248,2]
[321660230,1712361033282,-1000.0,0.000248,2]
[321660231,1712361033291,-1000.0,0.000248,2]
[321660232,1712361033301,-34459.66893611,0.00024801,2]
[321660233,1712361033310,-1048.62444435,0.00024801,2]
[321660234,1712361033318,-1081.43451429,0.00024804,2]
[321660235,1712361033327,-597.50340687,0.00024805,2]
[321660236,1712361033337,-1089.13880337,0.00024806,2]
[321660237,1712361033346,-34459.66893611,0.00024808,2]
[321660238,1712361033355,-597.50340687,0.00024808,2]
[321660239,1712361033364,-597.50340687,0.00024808,2]
[321660240,1712361033373,-1089.13880337,0.00024811,2]
[321660241,1712361033382,-1089.13880337,0.00024811,2]
[321660242,1712361033391,-1089.13880337,0.00024811,2]
[321660243,1712361033401,-597.50340687,0.00024814,2]
[321660244,1712361033411,-1218.8526492,0.00024814,2]
[321660245,1712361033420,-521.20214398,0.00024815,2]
[321660246,1712361033429,-34459.66893611,0.00024815,2]
[321660247,1712361033439,-1048.62444435,0.00024821,2]
[321660248,1712361033448,-1218.8526492,0.00024824,2]
[321660249,1712361033458,-597.50340687,0.00024829,2]
[321660250,1712361033476,-1081.43451429,0.00024834,2]
[321660251,1712361033488,-521.20214398,0.00024836,2]
[321660252,1712361033497,-597.50340687,0.00024839,2]
[321660253,1712361033507,-551.61883709,0.00024839,2]
[321660254,1712361033517,-317.05508646,0.0002484,2]
[321660255,1712361033527,-1048.62444435,0.00024841,2]
[321660256,1712361033537,-1218.8526492,0.00024843,2]
[321660257,1712361033546,-500.0,0.00024843,2]
[321660258,1712361033555,-220.95698096,0.00024843,2]
[321660259,1712361033565,-500.0,0.00024843,2]
[321660260,1712361033576,-34459.66893611,0.00024843,2]
[321660261,1712361033585,-1218.8526492,0.00024843,2]
[321660262,1712361033594,-34459.66893611,0.00024844,2]
[321660263,1712361033604,-597.50340687,0.00024844,2]
[321660264,1712361033613,-34459.66893611,0.00024848,2]
[321660265,1712361033623,-1218.8526492,0.00024851,2]
[321660266,1712361033632,-1218.8526492,0.00024854,2]
[321660267,1712361033642,-521.20214398,0.00024857,2]
[321660268,1712361033653,-597.50340687,0.00024858,2]
[321660269,1712361033664,-1048.62444435,0.0002486,2]
[321660270,1712361033674,-1218.8526492,0.00024861,2]
[321660271,1712361033685,-442.633,0.00024863,2]
[321660272,1712361033695,-169.952,0.00024863,2]
[321660273,1712361033704,-1066.17,0.00024863,2]
[321660274,1712361033714,-434.0,0.00024863,2]
[321660275,1712361033723,-1942.0,0.00024863,2]
[321660276,1712361033733,-2053.987,0.00024863,2]
[321660277,1712361033742,-2274.932,0.00024863,2]
[321660278,1712361033752,-214.0,0.00024863,2]
[321660279,1712361033761,-207.0,0.00024863,2]
[321660280,1712361033770,-2450.0,0.00024863,2]
[321660281,1712361033780,-2408.983,0.00024863,2]
[321660282,1712361033791,-3359.712,0.00024863,2]
[321660283,1712361033801,-1089.13880337,0.00024864,2]
[321660284,1712361033810,-1218.8526492,0.00024866,2]
[321660285,1712361033821,-150.0,0.00024866,2]
[321660286,1712361033831,-1081.43451429,0.00024871,2]
[321660287,1712361033843,-1081.43451429,0.00024872,2]
[321660288,1712361033853,-443.06814943,0.00024872,2]
[321660289,1712361033877,-638.36636486,0.00024872,2]
[321660290,1712361033887,-308.77554016,0.00024873,2]
[321660303,1712361038293,-780.36326321,0.00024873,2]
[321660304,1712361038303,-152.01,0.00024873,2]
[321660305,1712361038314,-1081.43451429,0.00024874,2]
[321660306,1712361038323,-155.39746209,0.00024878,2]
[321660307,1712361038335,-521.20214398,0.00024879,2]
[321660308,1712361038345,-500.0,0.00024879,2]
[321660309,1712361038355,-500.0,0.00024879,2]
[321660310,1712361038366,-500.0,0.00024879,2]
[321660311,1712361038376,-500.0,0.00024879,2]
[321660312,1712361038385,-500.0,0.00024879,2]
[321660313,1712361038394,-500.0,0.00024879,2]
[321660314,1712361038404,-500.0,0.00024879,2]
[321660315,1712361038413,-500.0,0.00024879,2]
[321660316,1712361038423,-500.0,0.00024879,2]
[321660317,1712361038431,-500.0,0.00024879,2]
[321660318,1712361038441,-500.0,0.00024879,2]
[321660319,1712361038449,-500.0,0.00024879,2]
[321660320,1712361038459,-500.0,0.00024879,2]
[321660321,1712361038468,-500.0,0.00024879,2]
[321660322,1712361038477,-500.0,0.00024879,2]
[321660323,1712361038486,-500.0,0.00024879,2]
[321660324,1712361038495,-249.04887144,0.00024879,2]
[321660325,1712361038504,-500.0,0.00024879,2]
[321660326,1712361038513,-500.0,0.00024879,2]
[321660327,1712361038522,-232.12,0.00024879,2]
[321660328,1712361038531,-180372.76877923,0.0002488,3]
[321660329,1712361038541,-219.76133818,0.0002488,2]
[321660330,1712361038549,-6447978.12835757,0.0002488,2]
[321660331,1712361038561,-1795145.05162504,0.0002488,2]
[321660332,1712361038573,-728410.9680656,0.0002488,2]
[321660333,1712361038585,-1499.32274278,0.0002488,2]
[321660334,1712361038607,-43851.66555887,0.0002488,2]
[321660335,1712361038630,-2511.55591866,0.0002488,2]
[321660336,1712361038642,-999.43221993,0.0002488,2]
[321660352,1712361040478,-2639.43718754,0.0002488,2]
[321660353,1712361040490,-1269.53925229,0.0002488,2]
[321660355,1712361043565,-392.88147728,0.0002488,2]
[321660407,1712361081502,150.0,9e-05,2]
[321660408,1712361081523,150.0,9e-05,2]
[321660409,1712361081543,150.0,9e-05,2]
[321660410,1712361081563,150.0,9e-05,2]
[321660411,1712361081586,150.0,9e-05,2]
[321660412,1712361081607,8549.55627861,9e-05,2]
[321660413,1712361082724,150.0,0.00016234,2]
[321660414,1712361082745,150.0,0.00016234,2]
[321660415,1712361082768,150.0,0.00016234,2]
[321660416,1712361082789,150.0,0.00016234,2]
[321660417,1712361082809,150.0,0.00016234,2]
[321660418,1712361082829,23.98626268,0.00016234,2]
[321660419,1712361088382,1370.31174349,0.00039938,30]
[321660420,1712361117189,20847.18393645,6.94e-05,2]
[321660421,1712361200090,4979.40410967,0.0001305,2]
[321660422,1712361249938,338.58,0.00021565,2]
[321660426,1712361269614,150.0,0.00015,2]
[321660427,1712361269634,150.0,0.00015,2]
[321660428,1712361269654,150.0,0.00015,2]
[321660429,1712361269674,150.0,0.00015,2]
[321660430,1712361269694,150.0,0.00015,2]
[321660431,1712361269714,150.0,0.00015,2]
[321660432,1712361269735,150.0,0.00015,2]
[321660433,1712361269755,150.0,0.00015,2]
[321660434,1712361269776,150.0,0.00015,2]
[321660435,1712361269796,150.0,0.00015,2]
[321660436,1712361269816,150.0,0.00015,2]
[321660437,1712361269836,150.0,0.00015,2]
[321660438,1712361269856,150.0,0.00015,2]
[321660439,1712361269876,150.0,0.00015,2]
[321660440,1712361269897,150.0,0.00015,2]
[321660441,1712361269917,150.0,0.00015,2]
[321660442,1712361269938,150.0,0.00015,2]
[321660443,1712361269958,150.0,0.00015,2]
[321660444,1712361269978,150.0,0.00015,2]
[321660445,1712361269998,150.0,0.00015,2]
[321660446,1712361270020,14425.61796623,0.00015,2]
[321660447,1712361278713,150.0,0.0002301,2]
[321660448,1712361278734,150.0,0.0002301,2]
[321660449,1712361278755,150.0,0.0002301,2]
[321660450,1712361278776,150.0,0.0002301,2]
[321660451,1712361278796,150.0,0.0002301,2]
[321660452,1712361278838,-150.0,0.0002301,2]
[321660453,1712361278919,-150.0,0.0002301,2]
[321660454,1712361278996,-150.0,0.0002301,2]
[321660455,1712361279031,-150.0,0.0002301,2]
[321660456,1712361279076,-150.0,0.0002301,2]
[321660457,1712361279116,-150.0,0.0002301,2]
[321660458,1712361279156,-150.0,0.0002301,2]
[321660459,1712361279194,-150.0,0.0002301,2]
[321660460,1712361279237,-150.0,0.0002301,2]
[321660461,1712361279268,-150.0,0.0002301,2]
[321660462,1712361279317,-150.0,0.0002301,2]
[321660463,1712361279354,-150.0,0.0002301,2]
[321660464,1712361279382,-150.0,0.0002301,2]
[321660465,1712361279407,-150.0,0.0002301,2]
[321660466,1712361279447,-36.41367264,0.0002301,2]
[321660467,1712361282489,150.0,0.00021,3]
[321660468,1712361282511,1300.0,0.00021,3]
[321660469,1712361283571,1500.0,0.00023,3]
[321660470,1712361372659,-150.0,0.00023011,2]
[321660471,1712361372826,-150.0,0.00023011,2]
[321660472,1712361373099,-104.47743846,0.00023011,2]
[321660473,1712361418497,522.426809,0.0002301,2]
[321660474,1712361424755,782.92013336,0.0002301,2]
[321660475,1712361429005,200.0,0.0002301,2]
[321660476,1712361488221,1136.20528229,0.0002301,2]
[321660477,1712361557832,782.92013336,0.0002301,2]
[321660478,1712361563448,500.0,0.0002301,2]
[321660479,1712361567199,155.0,0.0002301,2]
[321660480,1712361567419,258022.29862293,0.000229,2]